Workbook

Sheet Menu

Sheet Aktiva (hidden)
A1: označ a | B1: AKTIVA b | C1: řád. č. | D1: 2006 | E1: 2007 | F1: 2008 | G1: 2009 | H1: 2010 | I1: 2011
B2: AKTIVA CELKEM (ř. 02 + 03 + 31 + 63) | C2: 001 | D2: =SUM(D3,D4,D32,D64) -> 98193 | E2: 113069 | F2: 141539 | G2: 128842 | H2: 132844 | I2: 134741
A3: A. | B3: POHLEDÁVKY ZA UPSANÝ ZÁKLADNÍ KAPITÁL | C3: 002
A4: B. | B4: DLOUHODOBÝ MAJETEK (ř. 04 + 13 + 23) | C4: 003 | D4: =SUM(D5,D14,D24) -> 47438 | E4: 57570 | F4: 78024 | G4: 78266 | H4: 81126 | I4: 80572
A5: B.I. | B5: Dlouhodobý nehmotný majetek (ř.05 až 12) | C5: 004 | D5: =SUM(D6:D13) -> 171 | E5: 95 | F5: 71 | G5: 16 | H5: 2269 | I5: 1005
A6: 1 | B6: Zřizovací výdaje | C6: 005
A7: 2 | B7: Nehmotné výsledky výzkumu a vývoje | C7: 006
A8: 3 | B8: Software | C8: 007 | D8: 171 | E8: 95 | F8: 71 | G8: 16 | H8: 2269 | I8: 1005
A9: 4 | B9: Ocenitelná práva | C9: 008
A10: 5 | B10: Goodwill | C10: 009
A11: 6 | B11: Jiný dlouhodobý nehmotný majetek | C11: 010
A12: 7 | B12: Nedokončený dlouh. nehmotný majetek | C12: 011
A13: 8 | B13: Poskytnuté zálohy na dlouhodobý nehmotný majetek | C13: 012
A14: B.II. | B14: Dlouhodobý hmotný majetek (ř.14 až 22) | C14: 013 | D14: =SUM(D15:D23) -> 46252 | E14: 56543 | F14: 77021 | G14: 77324 | H14: 78857 | I14: 79567
A15: 1 | B15: Pozemky | C15: 014 | D15: 402 | E15: 1563 | F15: 1563 | G15: 3197 | H15: 3197 | I15: 3197
A16: 2 | B16: Stavby | C16: 015 | D16: 19461 | E16: 27985 | F16: 41342 | G16: 52598 | H16: 57567 | I16: 56195
A17: 3 | B17: Samostatné movité věci a soubory mov. věcí | C17: 016 | D17: 18192 | E17: 19999 | F17: 20139 | G17: 16544 | H17: 15234 | I17: 15535
A18: 4 | B18: Pěstitelské celky trvalých porostů | C18: 017
A19: 5 | B19: Dospělá zvířata a jejich skupiny | C19: 018
A20: 6 | B20: Jiný dlouhodobý hmotný majetek | C20: 019
A21: 7 | B21: Nedokončený dlouhodobý hmotný majetek | C21: 020 | D21: 8197 | E21: 3841 | F21: 13977 | G21: 4985 | H21: 2859 | I21: 4640
A22: 8 | B22: Poskytnuté zálohy na dlouhodobý hmotný majetek | C22: 021 | E22: 3155
A23: 9 | B23: Oceňovací rozdíl k nabytému majetku | C23: 022
A24: B.III. | B24: Dlouhodobý finanční majetek (ř. 24 až 30) | C24: 023 | D24: =SUM(D25:D31) -> 1015 | E24: 932 | F24: 932 | G24: 926 | H24: 0 | I24: 0
A25: 1 | B25: Podíly v ovládaných a řízených osobách | C25: 024 | D25: 1015 | E25: 932 | F25: 932 | G25: 926
A26: 2 | B26: Podíly v účetních jednotkách pod podstatným vlivem | C26: 025
A27: 3 | B27: Ostatní dlouhodobé cenné papíry a podíly | C27: 026
A28: 4 | B28: Půjčky a úvěry - ovládaná nebo ovládající osoba, podstatný vliv | C28: 027
A29: 5 | B29: Jiný dlouhodobý finanční majetek | C29: 028
A30: 6 | B30: Pořizovaný dlouhodobý finanční majetek | C30: 029
A31: 7 | B31: Poskytnuté zálohy na dlouhodobý finanční majetek | C31: 030
A32: C. | B32: OBĚŽNÁ AKTIVA (ř. 32 + 39 + 48 + 58) | C32: 031 | D32: =SUM(D33,D40,D49,D59) -> 47524 | E32: 54698 | F32: 62897 | G32: 49960 | H32: 50808 | I32: 53604
A33: C.I. | B33: Zásoby (ř. 33 až 38) | C33: 032 | D33: =SUM(D34:D39) -> 14184 | E33: 24912 | F33: 32122 | G33: 23328 | H33: 21428 | I33: 27363
A34: 1 | B34: Materiál | C34: 033 | D34: 11275 | E34: 19003 | F34: 24866 | G34: 19724 | H34: 13158 | I34: 16685
A35: 2 | B35: Nedokončená výroba a polotovary | C35: 034 | D35: 2909 | E35: 5909 | F35: 7256 | G35: 3604 | H35: 8270 | I35: 10678
A36: 3 | B36: Výrobky | C36: 035
A37: 4 | B37: Mladá a ostatní zvířata a jejich skupiny | C37: 036
A38: 5 | B38: Zboží | C38: 037
A39: 6 | B39: Poskytnuté zálohy na zásoby | C39: 038
A40: C.II. | B40: Dlouhodobé pohledávky (ř. 40 až 47) | C40: 039 | D40: =SUM(D41:D48) -> 0 | E40: 0 | F40: 0 | G40: 0 | H40: 0 | I40: 0
A41: 1 | B41: Pohledávky z obchodních vztahů | C41: 040
A42: 2 | B42: Pohledávky - ovládaná nebo ovládající osoba | C42: 041
A43: 3 | B43: Pohledávky - podstatný vliv | C43: 042
A44: 4 | B44: Pohledávky za společníky, členy družstva a za účastníky sdružení | C44: 043
A45: 5 | B45: Dlouhodobé poskytnuté zálohy | C45: 044
A46: 6 | B46: Dohadné účty aktivní | C46: 045
A47: 7 | B47: Jiné pohledávky | C47: 046
A48: 8 | B48: Odložená daňová pohledávka | C48: 047
A49: C.III. | B49: Krátkodobé pohledávky (ř. 49 až 57) | C49: 048 | D49: =SUM(D50:D58) -> 29470 | E49: 27185 | F49: 28564 | G49: 26046 | H49: 28075 | I49: 22567
A50: 1 | B50: Pohledávky z obchodních vztahů | C50: 049 | D50: 13422 | E50: 21697 | F50: 23839 | G50: 23556 | H50: 23166 | I50: 18530
A51: 2 | B51: Pohledávky za ovládanými a řízenými osobami | C51: 050
A52: 3 | B52: Pohledávky za úč. jednotkami pod podstatným vlivem | C52: 051
A53: 4 | B53: Pohl. za společníky, členy družstva a za účas. sdružení | C53: 052
A54: 5 | B54: Sociální zabezpečení a zdravotní pojištění | C54: 053
A55: 6 | B55: Stát - daňové pohledávky | C55: 054 | D55: 1790 | E55: 2290 | F55: 3480 | G55: 836 | H55: 2304 | I55: 1296
A56: 7 | B56: Krátkodobé poskytnuté zálohy | C56: 055 | D56: 520 | E56: 854 | F56: 490 | G56: 376 | H56: 480 | I56: 520
A57: 8 | B57: Dohadné účty aktivní | C57: 056 | D57: 13460 | E57: 1860 | I57: 169
A58: 9 | B58: Jiné pohledávky | C58: 057 | D58: 278 | E58: 484 | F58: 755 | G58: 1278 | H58: 2125 | I58: 2052
A59: C.IV. | B59: Krátkodobý finanční majetek (ř. 59 až 62) | C59: 058 | D59: =SUM(D60:D63) -> 3870 | E59: 2601 | F59: 2211 | G59: 586 | H59: 1305 | I59: 3674
A60: 1 | B60: Peníze | C60: 059 | D60: 164 | E60: 334 | F60: 669 | G60: 586 | H60: 326 | I60: 470
A61: 2 | B61: Účty v bankách | C61: 060 | D61: 3643 | E61: 2267 | F61: 1540 | H61: 979 | I61: 3204
A62: 3 | B62: Krátkodobý finanční majetek | C62: 061
A63: 4 | B63: Pořizovaný krátkodobý majetek - ceniny | C63: 062 | D63: 63 | F63: 2
A64: D.I. | B64: Časové rozlišení (ř. 64 až 66) | C64: 063 | D64: =SUM(D65:D67) -> 3231 | E64: 801 | F64: 618 | G64: 616 | H64: 910 | I64: 565
A65: 1 | B65: Náklady příštích období | C65: 064 | D65: 3005 | E65: 801 | F65: 611 | G65: 441 | H65: 722 | I65: 565
A66: 2 | B66: Komplexní náklady příštích období | C66: 065
A67: 3 | B67: Příjmy příštích období | C67: 066 | D67: 226 | F67: 7 | G67: 175 | H67: 188

Sheet Pasiva (hidden)
A1: označ a | B1: PASIVA b | C1: řád c | D1: 2006 | E1: 2007 | F1: 2008 | G1: 2009 | H1: 2010 | I1: 2011
B2: PASIVA CELKEM (ř. 68 + 86 + 119) | C2: 067 | D2: =SUM(D3,D21,D54) -> 98193 | E2: 113069 | F2: 141539 | G2: 128842 | H2: 132844 | I2: 134741
A3: A. | B3: VLASTNÍ KAPITÁL (ř. 69 + 73 + 79 + 82 + 85) | C3: 068 | D3: =SUM(D4,D8,D14,D17,D20) -> 35818 | E3: =SUM(E4,E8,E14,E17,E20) -> 46757 | F3: =SUM(F4,F8,F14,F17,F20) -> 55052 | G3: =SUM(G4,G8,G14,G17,G20) -> 48452 | H3: =SUM(H4,H8,H14,H17,H20) -> 54140 | I3: =SUM(I4,I8,I14,I17,,I20) -> 52546
A4: A.I. | B4: Základní kapitál (ř. 70 až 72 ) | C4: 069 | D4: =SUM(D5:D7) -> 1000 | E4: 1000 | F4: 1000 | G4: 1000 | H4: 1000 | I4: 1000
A5: 1 | B5: Základní kapitál | C5: 070 | D5: 1000 | E5: 1000 | F5: 1000 | G5: 1000 | H5: 1000 | I5: 1000
A6: 2 | B6: Vlastní akcie a vlastní obchodní podíly (-) | C6: 071
A7: 3 | B7: Změny vlastního kapitálu | C7: 072
A8: A.II. | B8: Kapitálové fondy (ř. 74 až 78) | C8: 073 | D8: =SUM(D9:D13) -> 8000 | E8: 14700 | F8: 15317 | G8: 6332 | H8: 11748 | I8: 9820
A9: 1 | B9: Emisní ážio | C9: 074
A10: 2 | B10: Ostatní kapitálové fondy | C10: 075 | D10: 8000 | E10: 14700 | F10: 15317 | G10: 6332 | H10: 11748 | I10: 9820
A11: 3 | B11: Oceňovací rozdíly z přecenění majetku a závazků | C11: 076
A12: 4 | B12: Oceňovací rozdíly z přecenění při přeměnách | C12: 077
A13: 5 | B13: Rozdíly z přeměn společností | C13: 078
A14: A.III. | B14: Rezervní fondy a ostatní fondy ze zisku (ř. 80 + 81 ) | C14: 079 | D14: =SUM(D15:D16) -> 100 | E14: 100 | F14: 100 | G14: 100 | H14: 100 | I14: 100
A15: 1 | B15: Zákonný rezervní fond | C15: 080 | D15: 100 | E15: 100 | F15: 100 | G15: 100 | H15: 100 | I15: 100
A16: 2 | B16: Statutární a ostatní fondy | C16: 081
A17: A.IV. | B17: Hospodářský výsledek minulých let (ř. 83 + 84) | C17: 082 | D17: =SUM(D18:D19) -> 20464 | E17: 26717 | F17: 30957 | G17: 38635 | H17: 40968 | I17: 41292
A18: 1 | B18: Nerozdělený zisk minulých let | C18: 083 | D18: 20464 | E18: 26717 | F18: 30957 | G18: 38635 | H18: 40968 | I18: 41292
A19: 2 | B19: Neuhrazená ztráta minulých let | C19: 084
A20: A.V. | B20: Výsledek hospodaření běžného učetního období (+/-) ř.01 - (+ 69 + 73 + 78 + 81 + 85 + 118) | C20: 085 | D20: 6254 | E20: 4240 | F20: 7678 | G20: 2385 | H20: 324 | I20: 334
A21: B. | B21: CIZÍ ZDROJE (ř. 87 + 92 + 103 + 115) | C21: 086 | D21: =SUM(D22,D27,D38,D50) -> 62189 | E21: 65962 | F21: 86201 | G21: 80190 | H21: 78528 | I21: 81230
A22: B.I. | B22: Rezervy (ř. 88 až 91) | C22: 087 | D22: =SUM(D23:D26) -> 0 | E22: 0 | F22: 0 | G22: 0 | H22: 0 | I22: 0
A23: 1 | B23: Rezervy podle zvláštních právních předpisů | C23: 088
A24: 2 | B24: Rezerva na důchody a podobné závazky | C24: 089
A25: 3 | B25: Rezerva na daň z příjmů | C25: 090
A26: 4 | B26: Ostatní rezervy | C26: 091
A27: B.II. | B27: Dlouhodobé závazky (ř. 93 až 102) | C27: 092 | D27: =SUM(D28:D37) -> 0 | E27: 1048 | F27: 1601 | G27: 1513 | H27: 1555 | I27: 1659
A28: 1 | B28: Závazky z obchodních vztahů | C28: 093
A29: 2 | B29: Závazky - ovládaná nebo ovládající osoba | C29: 094
A30: 3 | B30: Závazky - podstatný vliv | C30: 095
A31: 4 | B31: Závazky ke společníkům, členům družstva a k účastníkům sdružení | C31: 096
A32: 5 | B32: Dlouhodobé přijaté zálohy | C32: 097
A33: 6 | B33: Vydané dluhopisy | C33: 098
A34: 7 | B34: Dlouhodobé směnky k úhradě | C34: 099
A35: 8 | B35: Dohadné účty pasívní | C35: 100
A36: 9 | B36: Jiné závazky | C36: 101 | E36: 1048 | F36: 1601 | G36: 1513 | H36: 1555 | I36: 1659
A37: 10 | B37: Odložený daňový závazek | C37: 102
A38: B.III. | B38: Krátkodobé závazky (ř. 104 až 114) | C38: 103 | D38: =SUM(D39:D49) -> 18710 | E38: 33001 | F38: 32757 | G38: 24044 | H38: 30113 | I38: 32620
A39: 1 | B39: Závazky z obchodních vztahů | C39: 104 | D39: 7754 | E39: 13019 | F39: 15257 | G39: 12233 | H39: 11631 | I39: 14843
A40: 2 | B40: Závazky k ovládaným a řízeným osobám | C40: 105
A41: 3 | B41: Závazky k účetním jednotkám pod podstatným vlivem | C41: 106
A42: 4 | B42: Závazky ke společ., člen. družstva a k účastníkům sdružení | C42: 107 | D42: 4269 | E42: 7209 | F42: 471 | G42: 463
A43: 5 | B43: Závazky k zaměstnancům | C43: 108 | D43: 1507 | E43: 1843 | F43: 1925 | G43: 1845 | H43: 1448 | I43: 1557
A44: 6 | B44: Závazky ze sociálního zabezpečení a zdravotního pojištění | C44: 109 | D44: 846 | E44: 972 | F44: 2266 | G44: 1950 | H44: 3334 | I44: 2543
A45: 7 | B45: Stát - daňové závazky a dotace | C45: 110 | E45: 192 | F45: 789 | G45: 657 | H45: 1491 | I45: 933
A46: 8 | B46: Krátkodobé přijaté zálohy | C46: 111 | D46: 4311 | E46: 9209 | F46: 11917 | G46: 6805 | H46: 11408 | I46: 12110
A47: 9 | B47: Vydané dluhopisy | C47: 112
A48: 10 | B48: Dohadné účty pasivní | C48: 113 | I48: 7
A49: 11 | B49: Jiné závazky | C49: 114 | D49: 23 | E49: 557 | F49: 132 | G49: 91 | H49: 801 | I49: 627
A50: B.IV. | B50: Bankovní úvěry a výpomoci (ř. 116 až 118) | C50: 115 | D50: =SUM(D51:D53) -> 43479 | E50: 31913 | F50: 51843 | G50: 54633 | H50: 46860 | I50: 46951
A51: 1 | B51: Bankovní úvěry dlouhodobé | C51: 116 | D51: 6186 | E51: 4659 | F51: 41824 | G51: 39508 | H51: 32030 | I51: 37663
A52: 2 | B52: Krátkodobé bankovní úvěry | C52: 117 | D52: 33293 | E52: 27254 | F52: 8845 | G52: 13593 | H52: 14830 | I52: 9288
A53: 3 | B53: Krátkodobé finanční výpomoci | C53: 118 | D53: 4000 | F53: 1174 | G53: 1532
A54: C.I. | B54: Časové rozlišení (ř. 120 + 121) | C54: 119 | D54: =SUM(D55:D56) -> 186 | E54: 350 | F54: 286 | G54: 200 | H54: 176 | I54: 965
A55: 1 | B55: Výdaje příštích období | C55: 120 | D55: 186 | E55: 350 | F55: 286 | G55: 200 | H55: 176 | I55: 965
A56: 2 | B56: Výnosy příštích období | C56: 121
B59: závazky dl.+ krát. (2006) | D59: =D27+D38 -> 18710
B60: závazky dl.+ krát. (2007) | D60: =E27+E38 -> 34049
B61: závazky dl.+ krát. (2008) | D61: =F27+F38 -> 34358
B62: závazky dl.+ krát. (2009) | D62: =G27+G38 -> 25557
B63: závazky dl.+ krát. (2010) | D63: =H27+H38 -> 31668
B64: závazky dl.+ krát. (2011) | D64: =I27+I38 -> 34279

Sheet VZZ (hidden)
A1: označ a | B1: TEXT b | C1: řád č. | D1: 2006 | E1: 2007 | F1: 2008 | G1: 2009 | H1: 2010 | I1: 2011
A2: I. | B2: Tržby za prodej zboží | C2: 01 | D2: 0 | E2: 8862 | F2: 2506 | G2: 2167 | H2: 313 | I2: 0
A3: A. | B3: Náklady vynaložené na prodané zboží | C3: 02 | E3: 5662 | F3: 1508 | G3: 1088 | H3: 332
A4: + | B4: OBCHODNÍ MARŽE (ř. 01-02) | C4: 03 | D4: =SUM(D2:D3) -> 0 | E4: =E2-E3 -> 3200 | F4: =F2-F3 -> 998 | G4: =G2-G3 -> 1079 | H4: =H2-H3 -> -19 | I4: =I2-I3 -> 0
A5: II. | B5: Výkony (ř. 05+06+07) | C5: 04 | D5: =SUM(D6:D8) -> 88922 | E5: =SUM(E6,E7,E8) -> 123588 | F5: =SUM(F6:F8) -> 113922 | G5: =SUM(G6:G8) -> 110169 | H5: =SUM(H6:H8) -> 90729 | I5: =SUM(I6:I8) -> 95391
A6: 1 | B6: Tržby za prodej vlastních výrobků a služeb | C6: 05 | D6: 88535 | E6: 115663 | F6: 107376 | G6: 112029 | H6: 82387 | I6: 85898
A7: 2 | B7: Změna stavu zásob vlastní výroby | C7: 06 | D7: 311 | E7: 3000 | F7: 1349 | G7: -3652 | H7: 4666 | I7: 2408
A8: 3 | B8: Aktivace | C8: 07 | D8: 76 | E8: 4925 | F8: 5197 | G8: 1792 | H8: 3676 | I8: 7085
A9: B. | B9: Výkonová spotřeba (ř. 09+10) | C9: 08 | D9: =SUM(D10:D11) -> 66150 | E9: 81345 | F9: 63171 | G9: 60627 | H9: 53423 | I9: 53258
A10: 1 | B10: Spotřeba materiálu a energie | C10: 09 | D10: 49836 | E10: 64885 | F10: 49839 | G10: 45075 | H10: 40021 | I10: 38668
A11: 2 | B11: Služby | C11: 10 | D11: 16314 | E11: 16460 | F11: 13332 | G11: 15552 | H11: 13402 | I11: 14590
A12: + | B12: PŘIDANÁ HODNOTA (ř. 03+04-08) | C12: 11 | D12: =SUM(D4,D5)-D9 -> 22772 | E12: =SUM(E4,E5)-E9 -> 45443 | F12: =SUM(F4:F5)-F9 -> 51749 | G12: =SUM(G4,G5)-G9 -> 50621 | H12: =SUM(H4,H5)-H9 -> 37287 | I12: =SUM(I4,I5)-I9 -> 42133
A13: C. | B13: Osobní náklady | C13: 12 | D13: 26560 | E13: 32721 | F13: 35932 | G13: 36358 | H13: 28663 | I13: 28810
A14: 1 | B14: Mzdové náklady | C14: 13 | D14: 19507 | E14: 24034 | F14: 26338 | G14: 27141 | H14: 21112 | I14: 21190
A15: 2 | B15: Odměny členům orgánů spol. a družstva | C15: 14
A16: 3 | B16: Náklady na sociální zabezpečení a zdravotní pojištění | C16: 15 | D16: 6827 | E16: 8414 | F16: 9282 | G16: 8891 | H16: 7245 | I16: 7312
A17: 4 | B17: Sociální náklady | C17: 16 | D17: 226 | E17: 273 | F17: 312 | G17: 326 | H17: 306 | I17: 308
A18: D. | B18: Daně a poplatky | C18: 17 | D18: 205 | E18: 320 | F18: 213 | G18: 265 | H18: 266 | I18: 529
A19: E. | B19: Odpisy dl. nehmot. a hmotného majetku | C19: 18 | D19: 7325 | E19: 7674 | F19: 7763 | G19: 8307 | H19: 8335 | I19: 7659
A20: III. | B20: Tržby z prodeje dl. majetku a materiálu (ř. 20+21 ) | C20: 19 | D20: =SUM(D21:D22) -> 9871 | E20: 5033 | F20: 2614 | G20: 1894 | H20: 559 | I20: 4394
A21: 1 | B21: Tržby z prodeje dlouhodobého majetku | C21: 20 | D21: 2493 | E21: 793 | F21: 770 | G21: 323 | H21: 33 | I21: 2400
A22: 2 | B22: Tržby z prodeje materiálu | C22: 21 | D22: 7378 | E22: 4240 | F22: 1844 | G22: 1571 | H22: 526 | I22: 1994
A23: F. | B23: Zůstatková cena prod. dl. Majetku a materiálu (ř. 23+24 ) | C23: 22 | D23: =SUM(D24:D25) -> 3096 | E23: 2279 | F23: 576 | G23: 1062 | H23: 347 | I23: 2210
A24: 1 | B24: Zůstatková cena prodaného dlouhodobého majetku | C24: 23 | D24: 128 | E24: 660 | G24: 153 | I24: 593
A25: 2 | B25: Prodaný materiál | C25: 24 | D25: 2968 | E25: 1619 | F25: 576 | G25: 909 | H25: 347 | I25: 1617
A26: G. | B26: Změna stavu rezerv a opravných položek v provozní oblasti a komplexních nákladů příštích období | C26: 25 | D26: -9307 | F26: -77 | G26: -12 | H26: -69
A27: IV. | B27: Ostatní provozní výnosy | C27: 26 | D27: 5464 | E27: 2258 | F27: 1225 | G27: 1342 | H27: 1058 | I27: 1275
A28: H. | B28: Ostatní provozní náklady | C28: 27 | D28: 1303 | E28: 1401 | F28: 2153 | G28: 1988 | H28: 1475 | I28: 4885
A29: V. | B29: Převod provozních výnosů | C29: 28
A30: I. | B30: Převod provoz. nákladů | C30: 29
A31: * | B31: PROVOZNÍ VÝSLEDEK HOSPODAŘENÍ (ř.11-12-17-18+19-22-25+26-27+(-28)-(-29) | C31: 30 | D31: =D12-D13-D18-D19+D20-D23-D26+D27-D28+(-D29)-(-D30) -> 8925 | E31: =E12-E13-E18-E19+E20-E23-E26+E27-E28+(-E29)-(-E30) -> 8339 | F31: 9028 | G31: 5889 | H31: -113 | I31: 3709
A32: VI. | B32: Tržby z prodeje cenných papírů a podílů | C32: 31
A33: J. | B33: Prodané cenné papíry a podíly | C33: 32
A34: VII. | B34: Výnosy z dl. finančního majetku (ř. 34 + 35 + 36) | C34: 33 | D34: =SUM(D35:D37) -> 0 | E34: 0 | F34: 0 | G34: 0 | H34: 0 | I34: 0
A35: 1 | B35: Výnosy z podílů v ovládaných a řízených osob. a v úč. jednotkách pod podstatným vlivem | C35: 34
A36: 2 | B36: Výnosy z ostatních dl. CP a podílů | C36: 35
A37: 3 | B37: Výnosy z ostatního dl. finančního majetku | C37: 36
A38: VIII. | B38: Výnosy z krátkodobého finančního majetku | C38: 37 | H38: 2010
A39: K. | B39: Náklady z finančního majetku | C39: 38 | H39: 926
A40: IX. | B40: Výnosy z přecenění CP a derivátů | C40: 39
A41: L. | B41: Náklady z přecenění CP derivátů | C41: 40
A42: M. | B42: Změna stavu rezerv a opravných položek ve fin. Oblasti | C42: 41
A43: X. | B43: Výnosové úroky | C43: 42 | D43: 14 | E43: 5 | F43: 24 | G43: 6 | H43: 0 | I43: 16
A44: N. | B44: Nákladové úroky | C44: 43 | D44: 1620 | E44: 2234 | F44: 2669 | G44: 2527 | H44: 1673 | I44: 1783
A45: XI. | B45: Ostatní finanční výnosy | C45: 44 | D45: 1689 | E45: 1503 | F45: 8382 | G45: 2323 | H45: 3342 | I45: 1153
A46: O. | B46: Ostatní finanční náklady | C46: 45 | D46: 714 | E46: 1535 | F46: 4617 | G46: 2601 | H46: 2031 | I46: 2637
A47: XII. | B47: Převod finančních výnosů | C47: 46
A48: P. | B48: Převod finančních nákladů | C48: 47
A49: * | B49: FINANČNÍ VÝSLEDEK HOSPODAŘENÍ (ř.31-32+33+37-38+39-40-41+42-43+44-45-(-46)+(-47)) | C49: 48 | D49: =D32-D33+D34+D38-D39+D40-D41-D42+D43-D44+D45-D46-(-D47)+(-D48) -> -631 | E49: =E32-E33+E34+E38-E39+E40-E41-E42+E43-E44+E45-E46-(-E47)+(-E48) -> -2261 | F49: 1120 | G49: -2799 | H49: 722 | I49: -3251
A50: Q. | B50: Daň z příjmů za běžnou činnost (ř. 50 + 51) | C50: 49 | D50: =SUM(D51:D52) -> 2040 | E50: 1868 | F50: 2470 | G50: 705 | H50: 285 | I50: 124
A51: 1 | B51: splatná | C51: 50 | D51: 2040 | E51: 1868 | F51: 2470 | G51: 743 | H51: 285 | I51: 124
A52: 2 | B52: odložená | C52: 51 | G52: -38
A53: ** | B53: VÝSLEDEK HOSPODAŘENÍ ZA BĚŽNOU ČINNOST (ř. 30 + 48 - 49) | C53: 52 | D53: =SUM(D31,D49)-D50 -> 6254 | E53: 4210 | F53: 7678 | G53: 2385 | H53: 324 | I53: 334
A54: XIII. | B54: Mimořádné výnosy | C54: 53
A55: R. | B55: Mimořádné náklady | C55: 54
A56: S. | B56: Daň z příjmů z mimořádné činnosti (ř. 56 + 57) | C56: 55 | D56: =SUM(D57:D58) -> 0 | E56: 0 | F56: 0 | G56: 0 | H56: 0 | I56: 0
A57: 1 | B57: splatná | C57: 56
A58: 2 | B58: odložená | C58: 57
A59: * | B59: MIMOŘÁDNÝ VÝSLEDEK HOSPODAŘENÍ (ř. 53 - 54 -55 ) | C59: 58 | D59: =D54-D55-D56 -> 0 | E59: =(E54-E55-E56) -> 0 | F59: =F54-F55-F56 -> 0 | G59: 0 | H59: 0 | I59: 0
A60: T. | B60: Převod podílu na výsledku hosp. společníkům (+/-) | C60: 59
A61: *** | B61: Výsledek hospodaření za účetní období (+/-) (ř. 52 + 58 - 59) | C61: 60 | D61: =SUM(D53,D59)-D60 -> 6254 | E61: =SUM(E53,E59)-E60 -> 4210 | F61: =SUM(F53,F59)-F60 -> 7678 | G61: =SUM(G53,G59)-G60 -> 2385 | H61: =SUM(H53,H59)-H56 -> 324 | I61: =SUM(I53,I59)-I60 -> 334
B62: Výsledek hospodaření před zdaněním (+/-) (ř. 30 + 48 + 53 - 54) | C62: 61 | D62: =SUM(D31,D49,D54)-D55 -> 8294 | E62: 6078 | F62: 10148 | G62: 3090 | H62: 609 | I62: 458

Sheet likvidita (hidden)
A1: Rok | B1: 2006 | C1: 2007 | D1: 2008 | E1: 2009 | F1: 2010 | G1: 2011
A2: Běžná likvidita (Likvidita 3. stupně) | B2: 2.54 | C2: 1.66 | D2: 1.92 | E2: 2.08 | F2: 1.69 | G2: 1.64
A3: Pohotová likvidita (Likvidita 2. stupně) | B3: 1.78 | C3: 0.9 | D3: 0.94 | E3: 1.11 | F3: 0.98 | G3: 0.8
A4: Okamžitá likvidita (Likvidita 1. stupně) | B4: 0.21 | C4: 0.08 | D4: 0.07 | E4: 0.02 | F4: 0.04 | G4: 0.11

Sheet rentabilita (hidden)
A1: Rok | B1: 2006 | C1: 2007 | D1: 2008 | E1: 2009 | F1: 2010 | G1: 2011
A2: Rentabilita vloženého kapitálu (ROI) v % | B2: 10.76 | C2: 9.38 | D2: 8.28 | E2: 6.54 | F2: 1.18 | G2: 4.11
A3: Rentabilita vložených aktiv (ROA) v % | B3: 9.09 | C3: 7.38 | D3: 6.38 | E3: 4.57 | F3: -0.09 | G3: 2.75
A4: Rentabilita vlastního kapitálu (ROE) v % | B4: 17.46 | C4: 9 | D4: 13.95 | E4: 4.92 | F4: 0.6 | G4: 0.64
A5: Rentabilita tržeb (ROS) v % | B5: 6.36 | C5: 3.25 | D5: 6.83 | E5: 2.05 | F5: 0.39 | G5: 0.37

Sheet aktivity (hidden)
A1: Rok | B1: 2006 | C1: 2007 | D1: 2008 | E1: 2009 | F1: 2010 | G1: 2011
A2: Obrat celkových aktiv | B2: 1 | C2: 1.15 | D2: 0.79 | E2: 0.9 | F2: 0.63 | G2: 0.67
A3: Obrat stálých aktiv | B3: 2.07 | C3: 2.25 | D3: 1.44 | E3: 1.48 | F3: 1.03 | G3: 1.12
A4: Doba obratu zásob (dny) | B4: 52 | C4: 69 | D4: 103 | E4: 72 | F4: 93 | G4: 109
A5: Doba obratu pohledávek (dny) | B5: 108 | C5: 76 | D5: 91 | E5: 81 | F5: 121 | G5: 90
A6: Doba obratu závazků (dny) | B6: 68 | C6: 95 | D6: 110 | E6: 79 | F6: 137 | G6: 137

Sheet zadluzenosti (hidden)
A1: Rok | B1: 2006 | C1: 2007 | D1: 2008 | E1: 2009 | F1: 2010 | G1: 2011
A2: Celková zadluženost v % | B2: 63.33 | C2: 58.34 | D2: 60.9 | E2: 62.24 | F2: 59.11 | G2: 60.29
A3: Koeficient samofinancování v % | B3: 36.48 | C3: 41.35 | D3: 38.9 | E3: 37.61 | F3: 40.75 | G3: 39
A4: Ukazatel úrokového krytí | B4: 5.51 | C4: 3.73 | D4: 3.38 | E4: 2.33 | F4: -0.07 | G4: 2.08

Sheet rozdilove (hidden)
A1: Rok | B1: 2006 | C1: 2007 | D1: 2008 | E1: 2009 | F1: 2010 | G1: 2011
A2: Čistý pracovní kapitál (ČPK) | B2: 28814 | C2: 21697 | D2: 30140 | E2: 25916 | F2: 20695 | G2: 20984
A3: Čisté pohotové prostředky (ČPP) | B3: -14840 | C3: -30400 | D3: -30546 | E3: -23458 | F3: -28808 | G3: -28946

Sheet Z-skore (hidden)
A1: Rok | B1: 2006 | C1: 2007 | D1: 2008 | E1: 2009 | F1: 2010 | G1: 2011
A2: x1 | B2: 0.2934 | C2: 0.1919 | D2: 0.2129 | E2: 0.2011 | F2: 0.1558 | G2: 0.1557
A3: x2 | B3: 0.2084 | C3: 0.2363 | D3: 0.2187 | E3: 0.2999 | F3: 0.3084 | G3: 0.3065
A4: x3 | B4: 0.0909 | C4: 0.0738 | D4: 0.0638 | E4: 0.0457 | F4: -0.0009 | G4: 0.0275
A5: x4 | B5: 0.0161 | C5: 0.0152 | D5: 0.0116 | E5: 0.0125 | F5: 0.0127 | G5: 0.0123
A6: x5 | B6: 1.0022 | C6: 1.1458 | D6: 0.7948 | E6: 0.901 | F6: 0.6267 | G6: 0.6701
A7: Z | B7: 1.68 | C7: 1.72 | D7: 1.33 | E7: 1.44 | F7: 1 | G7: 1.13
